[Event "NJSK 2022 Jeugd C"]
[Site "Almelo, Netherlands"]
[Date "2022.05.07"]
[Round "9.8"]
[White "Terlouw, Wouter"]
[Black "Ponomarev, Ivan"]
[Result "1/2-1/2"]
[TimeControl "90min + 30sec/move"]
[WhiteElo "1578"]
[BlackElo "1744"]

1. d4 {[%clk 01:30:58]} {[%emt 00:00:02]} Nf6 {[%clk 01:30:57]} {[%emt
00:00:04]} 2. c4 {[%clk 01:31:23]} {[%emt 00:00:05]} e6 {[%clk 01:31:24]}
{[%emt 00:00:02]} 3. Nf3 {[%clk 01:31:49]} {[%emt 00:00:04]} Bb4+ {[%clk
01:31:51]} {[%emt 00:00:04]} 4. Bd2 {[%clk 01:32:10]} {[%emt 00:00:08]} Bxd2+
{[%clk 01:32:03]} {[%emt 00:00:19]} 5. Qxd2 {[%clk 01:32:28]} {[%emt 00:00:12]}
d5 {[%clk 01:30:39]} {[%emt 00:01:55]} 6. Nc3 {[%clk 01:31:44]} {[%emt
00:01:13]} O-O {[%clk 01:28:10]} {[%emt 00:02:59]} 7. cxd5 {[%clk 01:30:10]}
{[%emt 00:02:03]} exd5 {[%clk 01:27:31]} {[%emt 00:01:10]} 8. e3 {[%clk
01:29:35]} {[%emt 00:01:06]} Bf5 {[%clk 01:19:58]} {[%emt 00:08:02]} 9. Bd3
{[%clk 01:26:53]} {[%emt 00:03:09]} Bg6 {[%clk 01:19:13]} {[%emt 00:01:17]} 10.
Ne5 {[%clk 01:22:57]} {[%emt 00:04:26]} Nbd7 {[%clk 01:15:33]} {[%emt
00:04:10]} 11. Nxg6 {[%clk 01:20:18]} {[%emt 00:03:09]} hxg6 {[%clk 01:14:42]}
{[%emt 00:01:21]} 12. b4 {[%clk 01:19:36]} {[%emt 00:01:12]} Qe7 {[%clk
01:04:19]} {[%emt 00:10:53]} 13. Rb1 {[%clk 01:14:08]} {[%emt 00:05:59]} Rae8
{[%clk 00:55:02]} {[%emt 00:09:47]} 14. O-O {[%clk 01:13:22]} {[%emt 00:01:14]}
Kh7 {[%clk 00:48:25]} {[%emt 00:07:09]} 15. Qe2 {[%clk 01:08:50]} {[%emt
00:04:58]} Rh8 {[%clk 00:47:18]} {[%emt 00:01:39]} 16. Qf3 {[%clk 01:06:50]}
{[%emt 00:02:29]} c6 {[%clk 00:42:15]} {[%emt 00:05:36]} 17. Ne2 {[%clk
00:59:04]} {[%emt 00:08:16]} Ne4 {[%clk 00:38:14]} {[%emt 00:04:31]} 18. Bxe4
{[%clk 00:55:24]} {[%emt 00:04:10]} dxe4 {[%clk 00:38:31]} {[%emt 00:00:13]} 19.
Qg3 {[%clk 00:53:53]} {[%emt 00:02:01]} g5 {[%clk 00:32:33]} {[%emt 00:06:28]}
20. b5 {[%clk 00:51:43]} {[%emt 00:02:38]} c5 {[%clk 00:27:56]} {[%emt
00:05:09]} 21. Nc3 {[%clk 00:50:42]} {[%emt 00:01:28]} cxd4 {[%clk 00:22:16]}
{[%emt 00:06:13]} 22. Nd5 {[%clk 00:47:00]} {[%emt 00:04:11]} Qe5 {[%clk
00:19:36]} {[%emt 00:03:10]} 23. Nc7 {[%clk 00:40:17]} {[%emt 00:07:14]} Rc8
{[%clk 00:14:43]} {[%emt 00:05:22]} 24. Qxe5 {[%clk 00:40:25]} {[%emt
00:00:22]} Nxe5 {[%clk 00:14:59]} {[%emt 00:00:15]} 25. exd4 {[%clk 00:40:23]}
{[%emt 00:00:32]} Rxc7 {[%clk 00:15:10]} {[%emt 00:00:19]} 26. dxe5 {[%clk
00:40:46]} {[%emt 00:00:07]} Re8 {[%clk 00:15:14]} {[%emt 00:00:25]} 27. b6
{[%clk 00:38:23]} {[%emt 00:02:53]} axb6 {[%clk 00:15:20]} {[%emt 00:00:25]} 28.
Rxb6 {[%clk 00:38:33]} {[%emt 00:00:20]} Rxe5 {[%clk 00:14:29]} {[%emt
00:01:20]} 29. Rfb1 {[%clk 00:37:13]} {[%emt 00:01:50]} Ree7 {[%clk 00:10:37]}
{[%emt 00:04:22]} 30. g4 {[%clk 00:34:53]} {[%emt 00:02:50]} f6 {[%clk
00:07:18]} {[%emt 00:03:49]} 31. a4 {[%clk 00:32:50]} {[%emt 00:02:33]} Rc4
{[%clk 00:04:48]} {[%emt 00:03:00]} 32. R6b4 {[%clk 00:25:16]} {[%emt
00:08:04]} Rxb4 {[%clk 00:04:39]} {[%emt 00:00:39]} 33. Rxb4 {[%clk 00:25:43]}
{[%emt 00:00:02]} g6 {[%clk 00:04:05]} {[%emt 00:01:05]} 34. Rb5 {[%clk
00:23:47]} {[%emt 00:02:25]} Kg7 {[%clk 00:03:17]} {[%emt 00:01:17]} 35. Kf1
{[%clk 00:23:20]} {[%emt 00:00:58]} Kf7 {[%clk 00:03:05]} {[%emt 00:00:43]} 36.
Ke2 {[%clk 00:23:34]} {[%emt 00:00:15]} Ke6 {[%clk 00:02:23]} {[%emt 00:01:12]}
37. Ke3 {[%clk 00:22:30]} {[%emt 00:01:35]} f5 {[%clk 00:01:38]} {[%emt
00:01:14]} 38. Rb6+ {[%clk 00:22:17]} {[%emt 00:00:43]} Kf7 {[%clk 00:01:21]}
{[%emt 00:00:47]} 39. Rb5 {[%clk 00:21:04]} {[%emt 00:01:42]} f4+ {[%clk
00:01:27]} {[%emt 00:00:25]} 40. Ke2 {[%clk 00:20:41]} {[%emt 00:00:53]} e3
{[%clk 00:01:29]} {[%emt 00:00:29]} 41. fxe3 {[%clk 00:20:16]} {[%emt
00:00:55]} Rxe3+ {[%clk 00:01:30]} {[%emt 00:00:29]} 42. Kf2 {[%clk 00:20:21]}
{[%emt 00:00:24]} Ra3 {[%clk 00:00:43]} {[%emt 00:01:17]} 43. Rxb7+ {[%clk
00:20:33]} {[%emt 00:00:19]} Kf6 {[%clk 00:00:59]} {[%emt 00:00:13]} 44. Rb6+
{[%clk 00:20:34]} {[%emt 00:00:29]} Ke5 {[%clk 00:00:51]} {[%emt 00:00:38]} 45.
Rb4 {[%clk 00:16:25]} {[%emt 00:04:39]} Ra2+ {[%clk 00:01:08]} {[%emt
00:00:14]} 46. Kg1 {[%clk 00:16:13]} {[%emt 00:00:41]} f3 {[%clk 00:01:07]}
{[%emt 00:00:32]} 47. h3 {[%clk 00:15:53]} {[%emt 00:00:49]} f2+ {[%clk
00:01:14]} {[%emt 00:00:23]} 48. Kf1 {[%clk 00:16:10]} {[%emt 00:00:13]} Kd5
{[%clk 00:01:15]} {[%emt 00:00:30]} 49. a5 {[%clk 00:15:38]} {[%emt 00:01:01]}
Rxa5 {[%clk 00:01:00]} {[%emt 00:00:45]} 50. Kxf2 {[%clk 00:15:59]} {[%emt
00:00:08]} Ke5 {[%clk 00:00:59]} {[%emt 00:00:31]} 51. Rb6 {[%clk 00:14:55]}
{[%emt 00:01:34]} Ra2+ {[%clk 00:01:09]} {[%emt 00:00:20]} 1/2-1/2

[Event "NJSK 2022 Jeugd C"]
[Site "Almelo, Netherlands"]
[Date "2022.05.07"]
[Round "9.9"]
[White "Krylov, Philippe"]
[Black "Kumar, Prayan Sai"]
[Result "0-1"]
[TimeControl "90min + 30sec/move"]
[WhiteElo "1817"]
[BlackElo "1562"]

1. c4 {[%clk 01:30:58]} {[%emt 00:00:01]} Nf6 {[%clk 01:30:53]} {[%emt
00:00:08]} 2. Nc3 {[%clk 01:31:24]} {[%emt 00:00:04]} e6 {[%clk 01:31:13]}
{[%emt 00:00:10]} 3. d4 {[%clk 01:31:09]} {[%emt 00:00:45]} Bb4 {[%clk
01:31:37]} {[%emt 00:00:05]} 4. e3 {[%clk 01:31:38]} {[%emt 00:00:02]} Bxc3+
{[%clk 01:31:46]} {[%emt 00:00:21]} 5. bxc3 {[%clk 01:32:03]} {[%emt 00:00:04]}
O-O {[%clk 01:32:08]} {[%emt 00:00:09]} 6. g3 {[%clk 01:31:57]} {[%emt
00:00:36]} d6 {[%clk 01:31:36]} {[%emt 00:01:02]} 7. Bg2 {[%clk 01:32:22]}
{[%emt 00:00:05]} Nbd7 {[%clk 01:31:38]} {[%emt 00:00:28]} 8. Ne2 {[%clk
01:31:40]} {[%emt 00:01:12]} Rb8 {[%clk 01:30:15]} {[%emt 00:01:53]} 9. O-O
{[%clk 01:31:30]} {[%emt 00:00:39]} b6 {[%clk 01:29:57]} {[%emt 00:00:49]} 10.
Re1 {[%clk 01:29:10]} {[%emt 00:02:50]} c5 {[%clk 01:24:54]} {[%emt 00:05:34]}
11. a4 {[%clk 01:26:55]} {[%emt 00:02:44]} Qc7 {[%clk 01:22:11]} {[%emt
00:03:12]} 12. Ba3 {[%clk 01:26:24]} {[%emt 00:01:02]} Ba6 {[%clk 01:21:08]}
{[%emt 00:01:33]} 13. Qb3 {[%clk 01:26:18]} {[%emt 00:00:35]} Rfc8 {[%clk
01:19:58]} {[%emt 00:01:40]} 14. Rac1 {[%clk 01:25:39]} {[%emt 00:01:09]} Ne8
{[%clk 01:13:53]} {[%emt 00:06:35]} 15. d5 {[%clk 01:20:28]} {[%emt 00:05:42]}
Ne5 {[%clk 01:11:20]} {[%emt 00:03:04]} 16. dxe6 {[%clk 01:19:49]} {[%emt
00:01:08]} fxe6 {[%clk 01:10:55]} {[%emt 00:00:54]} 17. Bh3 {[%clk 01:18:30]}
{[%emt 00:01:49]} Qe7 {[%clk 01:10:18]} {[%emt 00:01:08]} 18. Nf4 {[%clk
01:17:51]} {[%emt 00:01:08]} Nc7 {[%clk 01:08:43]} {[%emt 00:02:05]} 19. Red1
{[%clk 01:06:49]} {[%emt 00:11:32]} Bxc4 {[%clk 01:05:17]} {[%emt 00:03:56]} 20.
Qc2 {[%clk 01:06:57]} {[%emt 00:00:23]} Nf3+ {[%clk 00:53:43]} {[%emt
00:12:04]} 21. Kg2 {[%clk 01:06:38]} {[%emt 00:00:48]} Ng5 {[%clk 00:52:26]}
{[%emt 00:01:48]} 22. Bg4 {[%clk 01:06:04]} {[%emt 00:01:04]} Rf8 {[%clk
00:46:28]} {[%emt 00:06:27]} 23. h4 {[%clk 01:05:37]} {[%emt 00:00:57]} Nf7
{[%clk 00:39:42]} {[%emt 00:07:16]} 24. Be2 {[%clk 00:59:23]} {[%emt 00:06:45]}
Bxe2 {[%clk 00:37:26]} {[%emt 00:02:45]} 25. Qxe2 {[%clk 00:59:39]} {[%emt
00:00:15]} Rbd8 {[%clk 00:33:41]} {[%emt 00:04:16]} 26. c4 {[%clk 00:57:53]}
{[%emt 00:02:15]} Ne5 {[%clk 00:18:59]} {[%emt 00:15:11]} 27. Bb2 {[%clk
00:58:07]} {[%emt 00:00:17]} Nc6 {[%clk 00:18:57]} {[%emt 00:00:33]} 28. Qg4
{[%clk 00:51:24]} {[%emt 00:07:12]} e5 {[%clk 00:17:04]} {[%emt 00:02:24]} 29.
Nd5 {[%clk 00:51:12]} {[%emt 00:00:42]} Nxd5 {[%clk 00:17:26]} {[%emt
00:00:07]} 30. Rxd5 {[%clk 00:50:54]} {[%emt 00:00:48]} Nb4 {[%clk 00:17:50]}
{[%emt 00:00:06]} 31. Rd2 {[%clk 00:49:58]} {[%emt 00:01:27]} Qf7 {[%clk
00:16:50]} {[%emt 00:01:30]} 32. Qe2 {[%clk 00:48:44]} {[%emt 00:01:43]} Qe7
{[%clk 00:12:36]} {[%emt 00:04:44]} 33. Rcd1 {[%clk 00:45:46]} {[%emt
00:03:28]} e4 {[%clk 00:12:11]} {[%emt 00:00:56]} 34. Qg4 {[%clk 00:44:51]}
{[%emt 00:01:25]} Nd3 {[%clk 00:12:16]} {[%emt 00:00:25]} 35. Kg1 {[%clk
00:43:22]} {[%emt 00:01:59]} Rf7 {[%clk 00:11:04]} {[%emt 00:01:41]} 36. f4
{[%clk 00:43:15]} {[%emt 00:00:37]} Nxb2 {[%clk 00:10:54]} {[%emt 00:00:40]} 37.
Rxb2 {[%clk 00:43:37]} {[%emt 00:00:08]} Rf6 {[%clk 00:10:59]} {[%emt
00:00:25]} 38. Rd5 {[%clk 00:43:44]} {[%emt 00:00:23]} Rg6 {[%clk 00:10:42]}
{[%emt 00:00:47]} 39. Qh3 {[%clk 00:41:52]} {[%emt 00:02:22]} Qf6 {[%clk
00:10:01]} {[%emt 00:01:11]} 40. h5 {[%clk 00:35:13]} {[%emt 00:07:10]} Rxg3+
{[%clk 00:06:59]} {[%emt 00:03:32]} 41. Qxg3 {[%clk 00:35:37]} {[%emt
00:00:05]} Qxb2 {[%clk 00:07:23]} {[%emt 00:00:07]} 42. h6 {[%clk 00:36:02]}
{[%emt 00:00:05]} Qf6 {[%clk 00:06:32]} {[%emt 00:01:20]} 43. hxg7 {[%clk
00:35:41]} {[%emt 00:00:51]} Rd7 {[%clk 00:06:38]} {[%emt 00:00:25]} 44. Rg5
{[%clk 00:35:14]} {[%emt 00:00:56]} Rxg7 {[%clk 00:05:58]} {[%emt 00:01:10]} 45.
Rxg7+ {[%clk 00:35:23]} {[%emt 00:00:21]} Qxg7 {[%clk 00:06:22]} {[%emt
00:00:06]} 46. Kh2 {[%clk 00:35:40]} {[%emt 00:00:14]} Kf7 {[%clk 00:06:16]}
{[%emt 00:00:36]} 47. Qxg7+ {[%clk 00:35:49]} {[%emt 00:00:20]} Kxg7 {[%clk
00:06:39]} {[%emt 00:00:07]} 48. Kg3 {[%clk 00:36:17]} {[%emt 00:00:03]} Kf6
{[%clk 00:06:31]} {[%emt 00:00:37]} 49. Kg4 {[%clk 00:36:33]} {[%emt 00:00:14]}
d5 {[%clk 00:06:29]} {[%emt 00:00:33]} 50. cxd5 {[%clk 00:36:56]} {[%emt
00:00:07]} c4 {[%clk 00:06:54]} {[%emt 00:00:05]} 51. d6 {[%clk 00:37:17]}
{[%emt 00:00:09]} c3 {[%clk 00:07:14]} {[%emt 00:00:10]} 52. f5 {[%clk
00:36:20]} {[%emt 00:01:27]} c2 {[%clk 00:06:11]} {[%emt 00:01:32]} 53. d7
{[%clk 00:36:04]} {[%emt 00:00:46]} Ke7 {[%clk 00:06:24]} {[%emt 00:00:17]} 54.
f6+ {[%clk 00:36:28]} {[%emt 00:00:07]} Kxd7 {[%clk 00:06:42]} {[%emt
00:00:11]} 55. f7 {[%clk 00:36:55]} {[%emt 00:00:03]} Ke7 {[%clk 00:07:04]}
{[%emt 00:00:08]} 0-1

[Event "NJSK 2022 Jeugd C"]
[Site "Almelo, Netherlands"]
[Date "2022.05.07"]
[Round "9.10"]
[White "Folkers, Sono"]
[Black "Mohebbinezhad, Parsa"]
[Result "1/2-1/2"]
[TimeControl "90min + 30sec/move"]
[WhiteElo "1519"]
[BlackElo "1600"]

1. e4 {[%clk 01:30:57]} {[%emt 00:00:02]} c6 {[%clk 01:30:54]} {[%emt
00:00:06]} 2. Nf3 {[%clk 01:31:24]} {[%emt 00:00:03]} d5 {[%clk 01:31:19]}
{[%emt 00:00:06]} 3. Nc3 {[%clk 01:31:48]} {[%emt 00:00:05]} d4 {[%clk
01:31:20]} {[%emt 00:00:30]} 4. Ne2 {[%clk 01:32:12]} {[%emt 00:00:05]} c5
{[%clk 01:31:45]} {[%emt 00:00:06]} 5. Ng3 {[%clk 01:32:28]} {[%emt 00:00:14]}
Nc6 {[%clk 01:31:53]} {[%emt 00:00:23]} 6. Bc4 {[%clk 01:32:49]} {[%emt
00:00:08]} Bg4 {[%clk 01:31:51]} {[%emt 00:00:32]} 7. Bxf7+ {[%clk 01:31:24]}
{[%emt 00:01:55]} Kxf7 {[%clk 01:31:49]} {[%emt 00:00:32]} 8. Ng5+ {[%clk
01:31:46]} {[%emt 00:00:09]} Ke8 {[%clk 01:31:57]} {[%emt 00:00:22]} 9. Qxg4
{[%clk 01:32:06]} {[%emt 00:00:09]} Nf6 {[%clk 01:32:15]} {[%emt 00:00:12]} 10.
Qe6 {[%clk 01:31:54]} {[%emt 00:00:43]} Qc7 {[%clk 01:31:09]} {[%emt 00:01:36]}
11. Qf7+ {[%clk 01:31:09]} {[%emt 00:01:16]} Kd7 {[%clk 01:31:23]} {[%emt
00:00:15]} 12. Qe6+ {[%clk 01:29:02]} {[%emt 00:02:36]} Ke8 {[%clk 01:31:40]}
{[%emt 00:00:14]} 13. Nf7 {[%clk 01:28:23]} {[%emt 00:01:09]} Rg8 {[%clk
01:32:01]} {[%emt 00:00:09]} 14. e5 {[%clk 01:27:04]} {[%emt 00:01:49]} Qd7
{[%clk 01:26:23]} {[%emt 00:06:08]} 15. Qxd7+ {[%clk 01:26:38]} {[%emt
00:00:56]} Nxd7 {[%clk 01:26:44]} {[%emt 00:00:09]} 16. e6 {[%clk 01:26:43]}
{[%emt 00:00:25]} Nf6 {[%clk 01:22:28]} {[%emt 00:04:46]} 17. O-O {[%clk
01:26:08]} {[%emt 00:01:04]} h6 {[%clk 01:21:06]} {[%emt 00:01:52]} 18. f4
{[%clk 01:25:59]} {[%emt 00:00:39]} Nd8 {[%clk 01:17:40]} {[%emt 00:03:57]} 19.
Nxd8 {[%clk 01:24:17]} {[%emt 00:02:12]} Kxd8 {[%clk 01:16:23]} {[%emt
00:01:47]} 20. d3 {[%clk 01:24:07]} {[%emt 00:00:39]} Kc7 {[%clk 01:15:03]}
{[%emt 00:01:52]} 21. Bd2 {[%clk 01:20:31]} {[%emt 00:04:05]} g6 {[%clk
01:13:19]} {[%emt 00:02:14]} 22. a4 {[%clk 01:18:41]} {[%emt 00:02:20]} a5
{[%clk 01:13:23]} {[%emt 00:00:26]} 23. Rae1 {[%clk 01:18:38]} {[%emt
00:00:33]} b6 {[%clk 01:13:10]} {[%emt 00:00:44]} 24. f5 {[%clk 01:16:32]}
{[%emt 00:02:35]} g5 {[%clk 01:13:20]} {[%emt 00:00:19]} 25. Ne4 {[%clk
01:16:19]} {[%emt 00:00:43]} Bg7 {[%clk 01:12:17]} {[%emt 00:01:34]} 26. h3
{[%clk 01:08:12]} {[%emt 00:08:37]} Rad8 {[%clk 01:11:17]} {[%emt 00:01:30]} 27.
Bc1 {[%clk 01:04:10]} {[%emt 00:04:32]} Rd5 {[%clk 01:11:05]} {[%emt 00:00:41]}
28. Nd2 {[%clk 01:03:48]} {[%emt 00:00:52]} Ne8 {[%clk 01:10:27]} {[%emt
00:01:09]} 29. Ne4 {[%clk 01:00:06]} {[%emt 00:04:12]} Nd6 {[%clk 01:10:13]}
{[%emt 00:00:44]} 30. g4 {[%clk 00:59:45]} {[%emt 00:00:50]} Ne8 {[%clk
01:09:58]} {[%emt 00:00:46]} 31. Rf3 {[%clk 00:59:19]} {[%emt 00:00:56]} Nf6
{[%clk 01:09:45]} {[%emt 00:00:44]} 32. Bd2 {[%clk 00:58:23]} {[%emt 00:01:25]}
Rgd8 {[%clk 01:09:05]} {[%emt 00:01:09]} 33. Rf2 {[%clk 00:54:07]} {[%emt
00:04:46]} Re5 {[%clk 01:05:55]} {[%emt 00:03:41]} 34. Rfe2 {[%clk 00:52:02]}
{[%emt 00:02:35]} Nxe4 {[%clk 01:04:36]} {[%emt 00:01:49]} 35. Rxe4 {[%clk
00:52:12]} {[%emt 00:00:20]} Red5 {[%clk 01:04:06]} {[%emt 00:01:00]} 36. R1e2
{[%clk 00:52:05]} {[%emt 00:00:37]} Kc6 {[%clk 01:01:33]} {[%emt 00:03:03]} 37.
Be1 {[%clk 00:51:51]} {[%emt 00:00:30]} h5 {[%clk 01:00:24]} {[%emt 00:01:53]}
38. Bg3 {[%clk 00:50:56]} {[%emt 00:01:23]} h4 {[%clk 00:59:34]} {[%emt
00:01:22]} 39. Be5 {[%clk 00:48:19]} {[%emt 00:03:06]} Bxe5 {[%clk 00:59:20]}
{[%emt 00:00:45]} 40. Rxe5 {[%clk 00:48:26]} {[%emt 00:00:20]} Rxe5 {[%clk
00:55:12]} {[%emt 00:04:40]} 41. Rxe5 {[%clk 00:47:55]} {[%emt 00:01:01]}
1/2-1/2

[Event "NJSK 2022 Jeugd C"]
[Site "Almelo, Netherlands"]
[Date "2022.05.07"]
[Round "9.11"]
[White "Franco, Hugo"]
[Black "Fallaux, Storm"]
[Result "0-1"]
[TimeControl "90min + 30sec/move"]
[WhiteElo "1441"]
[BlackElo "1459"]

1. e4 {[%clk 01:30:57]} {[%emt 00:00:02]} c5 {[%clk 01:30:57]} {[%emt
00:00:03]} 2. Nf3 {[%clk 01:31:13]} {[%emt 00:00:15]} d6 {[%clk 01:31:21]}
{[%emt 00:00:05]} 3. d4 {[%clk 01:31:31]} {[%emt 00:00:12]} cxd4 {[%clk
01:31:51]} 4. Nxd4 {[%clk 01:31:57]} {[%emt 00:00:04]} Nf6 {[%clk 01:32:16]}
{[%emt 00:00:05]} 5. Nc3 {[%clk 01:31:36]} {[%emt 00:00:51]} a6 {[%clk
01:32:39]} {[%emt 00:00:08]} 6. Bd3 {[%clk 01:31:08]} {[%emt 00:00:56]} e5
{[%clk 01:32:27]} {[%emt 00:00:43]} 7. Nf3 {[%clk 01:30:49]} {[%emt 00:00:49]}
Be6 {[%clk 01:32:38]} {[%emt 00:00:19]} 8. Bg5 {[%clk 01:29:32]} {[%emt
00:01:47]} Nbd7 {[%clk 01:32:23]} {[%emt 00:00:45]} 9. h3 {[%clk 01:26:42]}
{[%emt 00:03:19]} h6 {[%clk 01:32:39]} {[%emt 00:00:14]} 10. Bh4 {[%clk
01:25:39]} {[%emt 00:01:33]} Be7 {[%clk 01:32:31]} {[%emt 00:00:38]} 11. Qd2
{[%clk 01:22:50]} {[%emt 00:03:20]} Rc8 {[%clk 01:32:23]} {[%emt 00:00:38]} 12.
Nh2 {[%clk 01:21:15]} {[%emt 00:02:03]} g5 {[%clk 01:31:40]} {[%emt 00:01:14]}
13. Bg3 {[%clk 01:21:18]} {[%emt 00:00:26]} Nh5 {[%clk 01:31:35]} {[%emt
00:00:36]} 14. Be2 {[%clk 01:19:55]} {[%emt 00:01:54]} Nxg3 {[%clk 01:31:25]}
{[%emt 00:00:40]} 15. fxg3 {[%clk 01:20:10]} {[%emt 00:00:14]} h5 {[%clk
01:29:47]} {[%emt 00:02:08]} 16. g4 {[%clk 01:19:01]} {[%emt 00:01:39]} h4
{[%clk 01:29:57]} {[%emt 00:00:20]} 17. b3 {[%clk 01:16:45]} {[%emt 00:02:46]}
Qc7 {[%clk 01:28:55]} {[%emt 00:01:32]} 18. Nd5 {[%clk 01:12:58]} {[%emt
00:04:18]} Bxd5 {[%clk 01:28:23]} {[%emt 00:01:01]} 19. exd5 {[%clk 01:13:22]}
{[%emt 00:00:06]} Qxc2 {[%clk 01:28:39]} {[%emt 00:00:14]} 20. Bd3 {[%clk
01:07:58]} {[%emt 00:05:54]} Qxd2+ {[%clk 01:27:40]} {[%emt 00:01:30]} 21. Kxd2
{[%clk 01:08:20]} {[%emt 00:00:08]} Nf6 {[%clk 01:27:52]} {[%emt 00:00:18]} 22.
Bf5 {[%clk 01:05:45]} {[%emt 00:03:05]} Rc5 {[%clk 01:27:14]} {[%emt 00:01:07]}
23. Rac1 {[%clk 01:05:15]} {[%emt 00:01:00]} Rxc1 {[%clk 01:26:45]} {[%emt
00:01:00]} 24. Rxc1 {[%clk 01:05:22]} {[%emt 00:00:23]} Bd8 {[%clk 01:26:36]}
{[%emt 00:00:39]} 25. Nf1 {[%clk 01:04:33]} {[%emt 00:01:19]} Nxd5 {[%clk
01:26:19]} {[%emt 00:00:47]} 26. Be4 {[%clk 01:04:51]} {[%emt 00:00:11]} Ba5+
{[%clk 01:26:24]} {[%emt 00:00:25]} 27. Kd3 {[%clk 01:03:26]} {[%emt 00:01:54]}
Nf4+ {[%clk 01:25:14]} {[%emt 00:01:41]} 28. Ke3 {[%clk 01:02:55]} {[%emt
00:01:01]} d5 {[%clk 01:24:50]} {[%emt 00:00:54]} 29. b4 {[%clk 01:01:54]}
{[%emt 00:01:31]} Bb6+ {[%clk 01:25:05]} {[%emt 00:00:15]} 30. Kf3 {[%clk
01:01:41]} {[%emt 00:00:41]} dxe4+ {[%clk 01:25:22]} {[%emt 00:00:15]} 31. Kxe4
{[%clk 01:01:56]} {[%emt 00:00:14]} O-O {[%clk 01:25:16]} {[%emt 00:00:38]} 32.
Ne3 {[%clk 01:01:38]} {[%emt 00:00:48]} Bxe3 {[%clk 01:25:13]} {[%emt
00:00:32]} 33. Kxe3 {[%clk 01:02:00]} {[%emt 00:00:07]} Nxg2+ {[%clk 01:25:36]}
{[%emt 00:00:09]} 34. Ke4 {[%clk 01:02:11]} {[%emt 00:00:18]} Nf4 {[%clk
01:25:02]} {[%emt 00:01:05]} 35. Kxe5 {[%clk 01:00:59]} {[%emt 00:01:41]} Nd3+
{[%clk 01:22:51]} {[%emt 00:02:41]} 36. Kf5 {[%clk 01:01:01]} {[%emt 00:00:28]}
Nxc1 {[%clk 01:23:13]} {[%emt 00:00:08]} 37. Kxg5 {[%clk 01:01:21]} {[%emt
00:00:10]} Nxa2 {[%clk 01:23:32]} {[%emt 00:00:12]} 38. Kxh4 {[%clk 01:01:31]}
{[%emt 00:00:19]} Nxb4 {[%clk 01:23:54]} {[%emt 00:00:08]} 0-1